fUST/lending_fUST_20240903
["ID","MTS","AMOUNT","RATE_DAILY","PERIOD"]
[337028034,1725328238417,-249.9427,0.00033925,30]
[337028036,1725328238427,-180.067593,0.0003453,30]
[337028038,1725328238436,-242.2631018,0.00035215,2]
[337028040,1725328238445,-2435.03465055,0.00035616,2]
[337028042,1725328238455,-180.067593,0.00036256,30]
[337028044,1725328238464,-3859.43860908,0.00037397,120]
[337028046,1725328238473,-442.0,0.0003888,120]
[337028048,1725328238483,-1794.0,0.00039178,2]
[337028050,1725328238491,-503.64031218,0.0004,5]
[337028052,1725328238501,-232.22823387,0.000404,5]
[337028054,1725328238510,-2591.10536408,0.000408,30]
[337028056,1725328238519,-1257.23119997,0.00041424,61]
[337028058,1725328238531,-1944.51204392,0.00041424,61]
[337028060,1725328238543,-582.41753839,0.00041424,61]
[337028063,1725328238561,-1168.57482,0.00041424,61]
[337028068,1725328238602,-13361.13385257,0.00041424,61]
[337028076,1725328240593,-58801.99657198,0.00041424,61]
[337028077,1725328240603,-3491.35130038,0.00041424,28]
[337028078,1725328240615,-898.40920454,0.00041482,3]
[337028079,1725328240625,-5371.6,0.00041515,3]
[337028080,1725328240634,-205.31,0.00041524,30]
[337028081,1725328240644,-171.09,0.00041524,30]
[337028082,1725328240655,-855.46,0.00041524,30]
[337028083,1725328240665,-6445.92,0.00041525,3]
[337028084,1725328240675,-687.17442206,0.00041534,2]
[337028085,1725328240685,-687.17442203,0.00041534,2]
[337028086,1725328240697,-687.17442203,0.00041535,2]
[337028087,1725328240706,-687.17442203,0.00041535,2]
[337028088,1725328240715,-687.17442203,0.00041535,2]
[337028089,1725328240725,-172.2,0.00041622,7]
[337028090,1725328240734,-172.2,0.00041622,7]
[337028091,1725328240744,-172.2,0.00041622,7]
[337028092,1725328240754,-172.2,0.00041622,7]
[337028093,1725328240764,-172.2,0.00041622,7]
[337028094,1725328240774,-172.2,0.00041622,7]
[337028095,1725328240784,-172.2,0.00041622,7]
[337028096,1725328240795,-172.2,0.00041622,7]
[337028097,1725328240805,-172.2,0.00041622,7]
[337028098,1725328240815,-500.0,0.00041622,31]
[337028099,1725328240826,-212.69657719,0.00041622,31]
[337028100,1725328240836,-305.89745652,0.00041622,7]
[337028101,1725328240846,-500.0,0.00041622,31]
[337028102,1725328240857,-1804.85359226,0.00041622,31]
[337028103,1725328240867,-500.0,0.00041622,31]
[337028104,1725328240878,-500.0,0.00041622,31]
[337028105,1725328240888,-220.32570887,0.00041622,31]
[337028106,1725328240898,-500.0,0.00041622,31]
[337028107,1725328240910,-1804.85359226,0.00041622,31]
[337028108,1725328240921,-500.0,0.00041622,31]
[337028109,1725328240931,-500.0,0.00041622,31]
[337028110,1725328240940,-1804.85359226,0.00041622,31]
[337028111,1725328240951,-500.0,0.00041622,31]
[337028112,1725328240961,-500.0,0.00041622,31]
[337028113,1725328240972,-500.0,0.00041622,31]
[337028114,1725328240982,-500.0,0.00041622,31]
[337028115,1725328240993,-1328.7055599,0.00041622,31]
[337028116,1725328241006,-476.14803236,0.00041622,31]
[337028117,1725328241016,-500.0,0.00041622,31]
[337028118,1725328241026,-235.06809809,0.00041622,31]
[337028125,1725328243365,-264.93190191,0.00041622,31]
[337028126,1725328243375,-12.26769533,0.00041622,31]
[337028127,1725328243386,-1792.58589693,0.00041622,31]
[337028128,1725328243396,-500.0,0.00041622,31]
[337028129,1725328243404,-188.91178257,0.00041622,31]
[337028130,1725328243414,-434.68547625,0.00041622,31]
[337028131,1725328243423,-500.0,0.00041622,31]
[337028132,1725328243432,-500.0,0.00041622,31]
[337028133,1725328243442,-1804.85359226,0.00041622,31]
[337028134,1725328243454,-500.0,0.00041622,31]
[337028135,1725328243463,-500.0,0.00041622,31]
[337028136,1725328243472,-1804.85359226,0.00041622,31]
[337028137,1725328243482,-544.82293512,0.00041622,31]
[337028138,1725328243491,-500.0,0.00041622,31]
[337028139,1725328243500,-677.20861712,0.00041622,31]
[337028140,1725328243536,-963.928774,0.00041622,31]
[337028149,1725328246473,-609.25545215,0.00041622,31]
[337028150,1725328246483,-500.0,0.00041622,31]
[337028151,1725328246493,-500.0,0.00041622,31]
[337028152,1725328246502,-500.0,0.00041622,31]
[337028153,1725328246512,-500.0,0.00041622,31]
[337028154,1725328246522,-500.0,0.00041622,31]
[337028155,1725328246533,-500.0,0.00041622,31]
[337028156,1725328246543,-500.0,0.00041622,31]
[337028157,1725328246555,-500.0,0.00041622,31]
[337028158,1725328246568,-500.0,0.00041622,31]
[337028159,1725328246578,-500.0,0.00041622,31]
[337028160,1725328246588,-500.0,0.00041622,31]
[337028161,1725328246599,-500.0,0.00041622,31]
[337028162,1725328246609,-500.0,0.00041622,31]
[337028163,1725328246621,-500.0,0.00041622,31]
[337028164,1725328246693,-500.0,0.00041622,31]
[337028165,1725328246715,-500.0,0.00041622,31]
[337028166,1725328246725,-312.86950108,0.00041622,31]
[337028167,1725328246734,-500.0,0.00041622,31]
[337028168,1725328246744,-500.0,0.00041622,31]
[337028169,1725328246754,-500.0,0.00041622,31]
[337028170,1725328246763,-500.0,0.00041622,31]
[337028171,1725328246774,-500.0,0.00041622,31]
[337028172,1725328246785,-500.0,0.00041622,31]
[337028173,1725328246794,-500.0,0.00041622,31]
[337028174,1725328246806,-500.0,0.00041622,31]
[337028175,1725328246817,-500.0,0.00041622,31]
[337028176,1725328246832,-500.0,0.00041622,31]
[337028177,1725328246842,-500.0,0.00041622,31]
[337028178,1725328246851,-500.0,0.00041622,31]
[337028179,1725328246860,-500.0,0.00041622,31]
[337028180,1725328246870,-500.0,0.00041622,31]
[337028181,1725328246879,-294.65889872,0.00041623,31]
[337028182,1725328246889,-77.06081814,0.00041623,31]
[337028188,1725328681524,10000.0,0.00020102,2]
[337028189,1725328690220,10000.0,0.00020102,2]
[337028190,1725328698467,10000.0,0.00020102,2]
[337028191,1725328705976,10000.0,0.00020102,2]
[337028193,1725328714931,10000.0,0.00020102,2]
[337028199,1725329283177,176.6778645,0.00023,60]
[337028200,1725329351158,-997.13934377,0.00027,5]
[337028201,1725329406595,7795.73,0.0002,2]
[337028231,1725329432499,-4100.74694114,0.00027,5]
[337028232,1725329432509,-155.34850229,0.00035616,2]
[337028233,1725329432519,-4.41547628,0.00037397,120]
[337028266,1725329443430,-241.80607439,0.00037397,120]
[337028267,1725329443440,-153.0000001,0.00040137,2]
[337028268,1725329443450,-153.0,0.00040137,2]
[337028269,1725329443460,-308.541386,0.00040137,2]
[337028270,1725329443472,-153.0,0.00040137,2]
[337028271,1725329443482,-153.0,0.00040137,2]
[337028272,1725329443492,-153.0,0.00040137,2]
[337028273,1725329443501,-3054.93238785,0.00040585,28]
[337028274,1725329443511,-4085.05614724,0.00040606,4]
[337028292,1725329446490,-33073.76627966,0.00040606,4]
[337028293,1725329446500,-154.0215571,0.00040685,2]
[337028295,1725329446510,-500.0,0.00041095,120]
[337028296,1725329446519,-4476.34,0.00041569,3]
[337028297,1725329446529,-3730.28,0.00041569,3]
[337028298,1725329446539,-63225.89556,0.0004158,14]
[337028299,1725329446548,-500.0,0.0004158,31]
[337028300,1725329446558,-500.0,0.0004158,31]
[337028301,1725329446568,-500.0,0.0004158,31]
[337028302,1725329446577,-212.69657719,0.0004158,31]
[337028303,1725329446587,-500.0,0.0004158,31]
[337028304,1725329446596,-500.0,0.0004158,31]
[337028305,1725329446606,-220.32570887,0.0004158,31]
[337028306,1725329446615,-500.0,0.0004158,31]
[337028307,1725329446625,-500.0,0.0004158,31]
[337028308,1725329446634,-500.0,0.0004158,31]
[337028309,1725329446644,-500.0,0.0004158,31]
[337028310,1725329446654,-305.89745652,0.0004158,7]
[337028311,1725329446664,-231.2869501,0.0004158,31]
[337028312,1725329446674,-500.0,0.0004158,31]
[337028313,1725329446683,-560.92554522,0.0004158,31]
[337028314,1725329446692,-500.0,0.0004158,31]
[337028315,1725329446703,-544.82293512,0.0004158,31]
[337028316,1725329446712,-500.0,0.0004158,31]
[337028317,1725329446724,-500.0,0.0004158,31]
[337028318,1725329446734,-500.0,0.0004158,31]
[337028319,1725329446744,-500.0,0.0004158,31]
[337028320,1725329446754,-500.0,0.0004158,31]
[337028321,1725329446763,-500.0,0.0004158,31]
[337028322,1725329446773,-500.0,0.0004158,31]
[337028323,1725329446782,-500.0,0.0004158,31]
[337028324,1725329446792,-500.0,0.0004158,31]
[337028325,1725329446802,-500.0,0.0004158,31]
[337028326,1725329446811,-434.68547625,0.0004158,31]
[337028327,1725329446820,-500.0,0.0004158,31]
[337028328,1725329446830,-488.91178257,0.0004158,31]
[337028329,1725329446839,-3652.44508756,0.0004158,61]
[337028330,1725329461265,1081.87448232,0.0002,2]
[337028344,1725330520751,881.01921875,0.00017,40]
[337028345,1725330522427,40128.9211996,0.0002,2]
[337028346,1725330523059,24303.39421225,0.0001999,2]
[337028348,1725330524427,419.95651967,0.000129,2]
[337028356,1725330572155,-563.01477772,0.00022138,2]
[337028357,1725330572175,-37.25615174,0.00023245,2]
[337028407,1725330632615,-432.64458715,0.00023245,2]
[337028409,1725330632626,-164.95169204,0.00025,120]
[337028411,1725330632637,-560.57282921,0.0002988,30]
[337028413,1725330632648,-150.71065719,0.0003,2]
[337028415,1725330632659,-800.0,0.00031571,7]
[337028417,1725330632667,-117.78335453,0.00031888,7]
[337028419,1725330632679,-682.21664547,0.00031888,7]
[337028421,1725330632688,-800.0,0.00032208,7]
[337028423,1725330632697,-800.0,0.00032512,7]
[337028425,1725330632707,-204.35315551,0.00033,2]
[337028427,1725330632716,-255.44063516,0.00035564,30]
[337028429,1725330632725,-174.4220254,0.00035616,2]
[337028431,1725330632735,-161.725865,0.00036228,2]
[337028433,1725330632744,-161.725865,0.00036346,2]
[337028435,1725330632753,-47.1376579,0.00036464,2]
[337028479,1725330640620,-114.5882071,0.00036464,2]
[337028480,1725330640630,-161.725865,0.00036582,2]
[337028481,1725330640639,-161.725865,0.000367,2]
[337028482,1725330640648,-161.725865,0.00036818,2]
[337028483,1725330640658,-161.725865,0.00036936,2]
[337028484,1725330640667,-161.725865,0.00037054,2]
[337028485,1725330640687,-161.725865,0.00037172,2]
[337028486,1725330640699,-161.725865,0.0003729,2]
[337028487,1725330640710,-276.45236955,0.00037397,120]
[337028488,1725330640720,-161.725865,0.00037408,2]
[337028489,1725330640731,-161.725865,0.00037526,2]
[337028490,1725330640741,-161.725865,0.00037644,2]
[337028491,1725330640753,-161.725865,0.00037762,2]
[337028492,1725330640763,-2260.01253211,0.0003786,120]
[337028493,1725330640774,-161.725865,0.0003788,2]
[337028494,1725330640786,-800.0,0.00037925,7]
[337028495,1725330640800,-161.725865,0.00037998,2]
[337028496,1725330640811,-161.725865,0.00038116,2]
[337028497,1725330640822,-800.0,0.00038823,7]
[337028498,1725330640832,-800.0,0.00041312,30]
[337028499,1725330640843,-3054.93238785,0.00041421,28]
[337028500,1725330640859,-3108.57,0.00041499,3]
[337028501,1725330640869,-173.43617169,0.00041508,31]
[337028502,1725330640879,-332.10130918,0.00041508,31]
[337028503,1725330640894,-227.20254835,0.00041508,31]
[337028504,1725330640905,-1790.33014724,0.00041508,31]
[337028505,1725330640915,-581.25410557,0.00041508,31]
[337028506,1725330640925,-1790.33014724,0.00041508,31]
[337028507,1725330640936,-1790.33014724,0.00041508,31]
[337028508,1725330640947,-1790.33014724,0.00041508,31]
[337028509,1725330640965,-1790.33014724,0.00041508,31]
[337028510,1725330640985,-1790.33014724,0.00041508,31]
[337028511,1725330641003,-1790.33014724,0.00041508,31]
[337028512,1725330641023,-1790.33014724,0.00041508,31]
[337028513,1725330641038,-1790.33014724,0.00041508,31]
[337028514,1725330641049,-1790.33014724,0.00041508,31]
[337028515,1725330641062,-1790.33014724,0.00041508,31]
[337028516,1725330641076,-1790.33014724,0.00041508,31]
[337028517,1725330641089,-1790.33014724,0.00041508,31]
[337028518,1725330641110,-1790.33014724,0.00041508,31]
[337028519,1725330641124,-1790.33014724,0.00041508,31]
[337028520,1725330641137,-1790.33014724,0.00041508,31]
[337028521,1725330641150,-1790.33014724,0.00041508,31]
[337028522,1725330641163,-1790.33014724,0.00041508,31]
[337028523,1725330641178,-1790.33014724,0.00041508,31]
[337028524,1725330641192,-1790.33014724,0.00041508,31]
[337028525,1725330641203,-1790.33014724,0.00041508,31]
[337028526,1725330641215,-1790.33014724,0.00041508,31]
[337028527,1725330641229,-1790.33014724,0.00041508,31]
[337028528,1725330641240,-1790.33014724,0.00041508,31]
[337028529,1725330641254,-1790.33014724,0.00041508,31]
[337028530,1725330641267,-1790.33014724,0.00041508,31]
[337028531,1725330641281,-1790.33014724,0.00041508,31]
[337028532,1725330641298,-1790.33014724,0.00041508,31]
[337028533,1725330641311,-1790.33014724,0.00041508,31]
[337028534,1725330641325,-1790.33014724,0.00041508,31]
[337028535,1725330641338,-1790.33014724,0.00041508,31]
[337028536,1725330641361,-1790.33014724,0.00041508,31]
[337028537,1725330641374,-1790.33014724,0.00041508,31]
[337028538,1725330641387,-1790.33014724,0.00041508,31]
[337028539,1725330641401,-1790.33014724,0.00041508,31]
[337028540,1725330641414,-1790.33014724,0.00041508,31]
[337028541,1725330641430,-1790.33014724,0.00041508,31]
[337028542,1725330641444,-1790.33014724,0.00041508,31]
[337028543,1725330641459,-1790.33014724,0.00041508,31]
[337028544,1725330641474,-1790.33014724,0.00041508,31]
[337028545,1725330641486,-1790.33014724,0.00041508,31]
[337028546,1725330641498,-1790.33014724,0.00041508,31]
[337028547,1725330641509,-1790.33014724,0.00041508,31]
[337028548,1725330641521,-1790.33014724,0.00041508,31]
[337028549,1725330641537,-1790.33014724,0.00041508,31]
[337028550,1725330641553,-1790.33014724,0.00041508,31]
[337028551,1725330641566,-1790.33014724,0.00041508,31]
[337028552,1725330641578,-1790.33014724,0.00041508,31]
[337028553,1725330641589,-1790.33014724,0.00041508,31]
[337028554,1725330641604,-1790.33014724,0.00041508,31]
[337028555,1725330641616,-1790.33014724,0.00041508,31]
[337028556,1725330641628,-1790.33014724,0.00041508,31]
[337028557,1725330641641,-1790.33014724,0.00041508,31]
[337028558,1725330641652,-1790.33014724,0.00041508,31]
[337028559,1725330641663,-1790.33014724,0.00041508,31]
[337028560,1725330641673,-1790.33014724,0.00041508,31]
[337028561,1725330641684,-1790.33014724,0.00041508,31]
[337028562,1725330641695,-1790.33014724,0.00041508,31]
[337028563,1725330641706,-1790.33014724,0.00041508,31]
[337028564,1725330641717,-1790.33014724,0.00041508,31]
[337028565,1725330641730,-1790.33014724,0.00041508,31]
[337028566,1725330641746,-1790.33014724,0.00041508,31]
[337028567,1725330641759,-1790.33014724,0.00041508,31]
[337028568,1725330641771,-1790.33014724,0.00041508,31]
[337028569,1725330641784,-1790.33014724,0.00041508,31]
[337028570,1725330641797,-1790.33014724,0.00041508,31]
[337028571,1725330641808,-36761.26472561,0.00041509,61]
[337028572,1725330641820,-172.22,0.00041509,7]
[337028573,1725330641832,-172.22,0.00041509,7]
[337028574,1725330641844,-131291.13568194,0.00041509,14]
[337028586,1725330644052,-10006.11581812,0.00041509,14]
[337028616,1725330646645,-2590.47,0.00041499,3]
[337028617,1725330646655,-65866.3036836,0.00041509,14]
[337028668,1725331832690,-151.0,0.0003,120]
[337028670,1725331832700,-267.89313081,0.00031885,7]
[337028812,1725331842060,-432.10686919,0.00031885,7]
[337028814,1725331842070,-161.72587,0.0003421,2]
[337028815,1725331842079,-170.00951362,0.00035616,2]
[337028816,1725331842089,-161.72587,0.00035993,2]
[337028817,1725331842098,-206.0,0.0003608,2]
[337028818,1725331842107,-700.0,0.00036763,7]
[337028819,1725331842116,-269.45870386,0.00037397,120]
[337028820,1725331842127,-823.66478402,0.00037862,2]
[337028821,1725331842137,-700.0,0.00038219,7]
[337028822,1725331842148,-700.0,0.00039237,7]
[337028823,1725331842157,-700.0,0.00039957,7]
[337028824,1725331842168,-700.0,0.00040146,30]
[337028825,1725331842177,-2500.0,0.00041,120]
[337028826,1725331842187,-1435.53,0.00041205,3]
[337028827,1725331842196,-170.17023756,0.00041208,120]
[337028828,1725331842206,-213086.25747,0.00041215,14]
[337028829,1725331842215,-227.20254835,0.00041215,31]
[337028830,1725331842225,-332.10130918,0.00041215,31]
[337028831,1725331842235,-581.25410557,0.00041215,31]
[337028832,1725331842245,-1360.6509119,0.00041215,31]
[337028833,1725331842255,-1360.6509119,0.00041215,31]
[337028834,1725331842264,-173.43617169,0.00041215,31]
[337028835,1725331842274,-1360.6509119,0.00041215,31]
[337028836,1725331842284,-1360.6509119,0.00041215,31]
[337028837,1725331842293,-1360.6509119,0.00041215,31]
[337028838,1725331842303,-1360.6509119,0.00041215,31]
[337028839,1725331842312,-1360.6509119,0.00041215,31]
[337028840,1725331842321,-1360.6509119,0.00041215,31]
[337028841,1725331842332,-1360.6509119,0.00041215,31]
[337028842,1725331842342,-1360.6509119,0.00041215,31]
[337028843,1725331842351,-1360.6509119,0.00041215,31]
[337028844,1725331842360,-1360.6509119,0.00041215,31]
[337028845,1725331842370,-1360.6509119,0.00041215,31]
[337028846,1725331842380,-1360.6509119,0.00041215,31]
[337028847,1725331842389,-1360.6509119,0.00041215,31]
[337028848,1725331842398,-1360.6509119,0.00041215,31]
[337028849,1725331842407,-1360.6509119,0.00041215,31]
[337028850,1725331842416,-1360.6509119,0.00041215,31]
[337028851,1725331842425,-1360.6509119,0.00041215,31]
[337028852,1725331842438,-1360.6509119,0.00041215,31]
[337028853,1725331842448,-1360.6509119,0.00041215,31]
[337028854,1725331842457,-1360.6509119,0.00041215,31]
[337028855,1725331842467,-1360.6509119,0.00041215,31]
[337028856,1725331842476,-1360.6509119,0.00041215,31]
[337028857,1725331842486,-1360.6509119,0.00041215,31]
[337028858,1725331842495,-1360.6509119,0.00041215,31]
[337028859,1725331842505,-1360.6509119,0.00041215,31]
[337028860,1725331842515,-1360.6509119,0.00041215,31]
[337028861,1725331842528,-1360.6509119,0.00041215,31]
[337028862,1725331842537,-1360.6509119,0.00041215,31]
[337028863,1725331842547,-1360.6509119,0.00041215,31]
[337028864,1725331842556,-1360.6509119,0.00041215,31]
[337028865,1725331842566,-1360.6509119,0.00041215,31]
[337028866,1725331842576,-1360.6509119,0.00041215,31]
[337028867,1725331842586,-1360.6509119,0.00041215,31]
[337028868,1725331842595,-1360.6509119,0.00041215,31]
[337028869,1725331842605,-1360.6509119,0.00041215,31]
[337028870,1725331842615,-1360.6509119,0.00041215,31]
[337028871,1725331842624,-1360.6509119,0.00041215,31]
[337028872,1725331842634,-1360.6509119,0.00041215,31]
[337028873,1725331842644,-1360.6509119,0.00041215,31]
[337028874,1725331842654,-1360.6509119,0.00041215,31]
[337028875,1725331842664,-1360.6509119,0.00041215,31]
[337028876,1725331842678,-1360.6509119,0.00041215,31]
[337028877,1725331842689,-1360.6509119,0.00041215,31]
[337028878,1725331842699,-1360.6509119,0.00041215,31]
[337028879,1725331842709,-1360.6509119,0.00041215,31]
[337028880,1725331842720,-1360.6509119,0.00041215,31]
[337028881,1725331842832,-1360.6509119,0.00041215,31]
[337028882,1725331842844,-1360.6509119,0.00041215,31]
[337028883,1725331842855,-1360.6509119,0.00041215,31]
[337028884,1725331842868,-1360.6509119,0.00041215,31]
[337028885,1725331842878,-1360.6509119,0.00041215,31]
[337028886,1725331842889,-1360.6509119,0.00041215,31]
[337028887,1725331842899,-3645.54917115,0.00041216,2]
[337028906,1725331843867,-10181.74054774,0.00041216,2]
[337028907,1725331843891,-247.31267669,0.00041216,2]
[337028934,1725333031895,-151.0,0.0003,120]
[337028935,1725333031904,-500.0,0.00031445,7]
[337028936,1725333031914,-500.0,0.00032501,7]
[337028937,1725333031923,-500.0,0.00032533,7]
[337028938,1725333031933,-465.71446551,0.00033443,2]
[337028939,1725333031942,-300.0,0.00034014,2]
[337028940,1725333031955,-3065.1898868,0.00034015,2]
[337028941,1725333031965,-1524.4953283,0.00034015,2]
[337028942,1725333031975,-500.0,0.00034037,7]
[337028943,1725333031985,-159.706161,0.00034335,2]
[337028944,1725333031994,-159.706161,0.00034454,2]
[337028945,1725333032004,-250.0,0.00034467,2]
[337028946,1725333032014,-1294.5739671,0.0003449,2]
[337028947,1725333032023,-808.9730649,0.00034555,2]
[337028948,1725333032032,-159.706161,0.00034573,2]
[337028949,1725333032041,-100.95448789,0.00034693,2]
[337028950,1725333032053,-58.75167311,0.00034693,2]
[337028951,1725333032063,-433.839,0.00034751,2]
[337028952,1725333032075,-159.706161,0.00034812,2]
[337028953,1725333032085,-159.706161,0.00034931,2]
[337028954,1725333032094,-1160.0911919,0.00034933,2]
[337028955,1725333032105,-159.706161,0.0003505,2]
[337028956,1725333032117,-394.15863091,0.00035128,2]
[337028957,1725333032129,-1344.50247582,0.00035128,2]
[337029018,1725333038312,-1018.68643677,0.00035128,2]
[337029020,1725333038321,-159.706161,0.0003517,2]
[337029022,1725333038330,-159.706161,0.00035289,2]
[337029025,1725333038340,-2043.1163269,0.00035299,2]
[337029028,1725333038349,-159.706161,0.00035408,2]
[337029031,1725333038359,-159.706161,0.00035528,2]
[337029033,1725333038369,-159.706161,0.00035647,2]
[337029035,1725333038378,-159.706161,0.00035766,2]
[337029037,1725333038388,-159.706161,0.00035885,2]
[337029039,1725333038397,-151.0,0.00036,120]
[337029042,1725333038407,-500.0,0.00036003,7]
[337029043,1725333038416,-159.706161,0.00036005,2]
[337029046,1725333038426,-159.706161,0.00036124,2]
[337029047,1725333038437,-500.0,0.00037669,7]
[337029049,1725333038447,-500.0,0.00037899,7]
[337029052,1725333038457,-500.0,0.00038595,7]
[337029054,1725333038467,-22490.38927635,0.00039972,4]
[337029140,1725333040104,-11856.47109176,0.00039972,4]
[337029142,1725333040115,-6747.63,0.0003999,3]
[337029144,1725333040126,-10075.93,0.0003999,3]
[337029146,1725333040137,-8396.61,0.0003999,3]
[337029148,1725333040148,-6737.11449359,0.0003999,3]
[337029330,1725333046095,-433.839,0.0004,120]
[337029456,1725334123347,52598.08367542,0.0001999,2]
[337029457,1725334123378,21143.22410549,0.0001999,2]
[337029461,1725334153907,-416.71259134,0.00020377,2]
[337029462,1725334153929,-661.59488429,0.00025,2]
[337029893,1725334240417,-3232.857839,0.00025,2]
[337029895,1725334240427,-2260.01253211,0.0003786,120]
[337029897,1725334240437,-243.77972925,0.00039302,2]
[337029899,1725334240446,-243.77972921,0.00039305,2]
[337029900,1725334240462,-243.77972921,0.00039308,2]
[337029902,1725334240471,-243.77972921,0.0003931,2]
[337029904,1725334240481,-243.77972921,0.00039313,2]
[337029906,1725334240491,-1961.0460914,0.00039313,2]
[337029907,1725334240501,-5842.66,0.00039392,3]
[337029909,1725334240511,-10270.3,0.00039392,3]
[337029911,1725334240522,-8390.40803108,0.00039392,3]
[337029913,1725334240537,-168.18196892,0.00039392,3]
[337029915,1725334240548,-691.50015108,0.00039392,3]
[337029960,1725334244233,-261.25,0.00039392,3]
[337030057,1725335369160,-511.912582,0.00033239,2]
[337030058,1725335369185,-250.0,0.00035594,2]
[337030059,1725335369209,-522.20832332,0.00035825,2]
[337030096,1725335432164,-299.50005724,0.00035825,2]
[337030100,1725335432188,-49.78802634,0.00035825,2]
[337030102,1725335432200,-296.29553796,0.00035953,7]
[337030105,1725335432213,-203.70446204,0.00035953,7]
[337030107,1725335432223,-296.29553796,0.00036161,7]
[337030109,1725335432235,-203.70446204,0.00036161,7]
[337030111,1725335432246,-253.4558256,0.00037499,7]
[337030338,1725335440330,-302.39527296,0.00035646,32]
[337030339,1725335440342,-246.5441744,0.00037499,7]
[337030340,1725335440354,-500.0,0.00038313,7]
[337030341,1725335440365,-300.0,0.000392,30]
[337030342,1725335440376,-243.77972925,0.00039269,2]
[337030343,1725335440388,-1961.0460914,0.00039269,2]
[337030344,1725335440397,-243.77972921,0.00039269,2]
[337030345,1725335440407,-243.77972921,0.0003927,2]
[337030346,1725335440416,-243.77972921,0.0003927,2]
[337030347,1725335440425,-243.77972921,0.0003927,2]
[337030348,1725335440435,-6204.015167,0.0003928,5]
[337030349,1725335440445,-9421.51,0.00039337,3]
[337030350,1725335440455,-10922.1368842,0.00039346,11]
[337030390,1725335446234,-802.36300465,0.00039247,2]
[337030511,1725336638403,-500.0,0.00032005,7]
[337030512,1725336638417,-560.45966793,0.00033015,2]
[337030513,1725336638428,-298.9080311,0.00034717,2]
[337030514,1725336638438,-161.219825,0.00035345,2]
[337030515,1725336638449,-1094.0298267,0.00035393,2]
[337030516,1725336638459,-170.78429222,0.00035422,2]
[337030517,1725336638474,-79.21570778,0.00035422,2]
[337030518,1725336638486,-256.6254169,0.00035718,2]
[337030519,1725336638496,-500.0,0.00037747,7]
[337030520,1725336638507,-485.95484156,0.0003901,3]
[337030558,1725336640314,-9434.61515844,0.0003901,3]
[337030560,1725336640325,-21641.93107761,0.0003902,11]
[337030658,1725336643449,-92.12853909,0.0003902,11]
[337030706,1725337722111,2970.98162373,0.00014,2]
[337030707,1725337722250,47168.59643095,0.0002,2]
[337030710,1725337825477,302.39527296,0.0002,2]
[337030928,1725337838750,-380.0,0.00035747,2]
[337030929,1725337838761,-61.04764933,0.00035866,2]
[337030934,1725337840412,-100.17217757,0.00035866,2]
[337030935,1725337840422,-2260.01253211,0.0003786,120]
[337030936,1725337840431,-1237.52701486,0.00038,7]
[337030937,1725337840442,-300.0,0.00038409,30]
[337030938,1725337840451,-1961.0460914,0.0003841,2]
[337030939,1725337840461,-243.77972925,0.00038423,2]
[337030940,1725337840470,-243.77972921,0.00038426,2]
[337030941,1725337840480,-243.77972921,0.00038429,2]
[337030942,1725337840489,-243.77972921,0.00038431,2]
[337030943,1725337840498,-243.77972921,0.00038434,2]
[337030944,1725337840508,-172.0,0.00038489,2]
[337030945,1725337840518,-22857.47461558,0.00038499,11]
[337030994,1725339032599,-2447.87494291,0.000332,11]
[337031031,1725339038725,-7222.18,0.0003319,3]
[337031033,1725339038737,-35816.93403944,0.000332,11]
[337031035,1725339038747,-3849.15764216,0.000332,2]
[337031046,1725339038837,-84134.34976997,0.000332,2]
[337031048,1725339038846,-400.0,0.00033299,2]
[337031049,1725339038856,-2954.63701226,0.000333,2]
[337031052,1725339038866,-500.0,0.00033655,7]
[337031054,1725339038877,-172.0,0.000343,2]
[337031056,1725339038888,-243.77972925,0.0003449,2]
[337031058,1725339038899,-500.0,0.00034578,7]
[337031062,1725339038910,-500.0,0.00034578,7]
[337031064,1725339038920,-500.0,0.00034578,7]
[337031065,1725339038931,-500.0,0.00034578,7]
[337031067,1725339038941,-500.0,0.00034578,7]